Cogmind - Beta 10.1 @@@ ROGUE MODE // 2020.09.24 @ 17:12:19 Player: FUTURIST Result: Destroyed by G-34 Mercenary with Small Laser Performance ------------- Evolutions (1) 500 Regions Visited (3) 600 Robots Destroyed (8) 40 Value Destroyed (320) 320 Prototype IDs (0) 0 Alien Tech Used (0) 0 Bonus (0) 0 TOTAL SCORE: 1460 Bonus ------- None Cogmind --------- Core Integrity 0/400 Matter 188/300 Energy 26/100 System Corruption 4% Temperature Cool (6) Movement Walking (120) Location -9/Materials Parts ------- > --- POWER (1) -------- (None) > --- PROPULSION (4) --- Aluminum Leg Aluminum Leg Aluminum Leg Aluminum Leg > --- UTILITY (2) ------ Small Storage Unit Medium Storage Unit > --- WEAPON (2) ------- (None) > --- INVENTORY (10) --- (None) Peak State ------------ > --- POWER ------------ Light Nuclear Core > --- PROPULSION ------- Carbon-fiber Leg Carbon-fiber Leg Carbon-fiber Leg Carbon-fiber Leg > --- UTILITY ---------- Small Storage Unit Medium Storage Unit > --- WEAPON ----------- Assault Rifle Heavy Assault Rifle > --- INVENTORY -------- Aluminum Leg Aluminum Leg Aluminum Leg Aluminum Leg Wheel Wheel Small Laser [Rating: 20] Favorites ----------- Power Ion Engine Engine Ion Engine Power Core Light Nuclear Core Propulsion Carbon-fiber Leg Leg Carbon-fiber Leg Wheel Wheel Utility Small Storage Unit Storage Small Storage Unit Weapon Assault Rifle Energy Gun Small Laser Ballistic Gun Assault Rifle Build | -11 -10 -10 -9 ------- Run | Scr Mat Min Mat Slots Evolved 2 | . . . 2 Power . | . . . . Propulsion 2 | . . . 2 Utility . | . . . . Weapon . | . . . . Parts Attached 25 | 5 4 . 16 Power 3 | 1 1 . 1 Engine 2 | 1 1 . . Core 1 | . . . 1 Reactor . | . . . . Propulsion 14 | 2 . . 12 Treads . | . . . . Leg 12 | 2 . . 10 Wheel 2 | . . . 2 Hover . | . . . . Flight . | . . . . Utility 3 | 1 2 . . Device . | . . . . Storage 3 | 1 2 . . Processor . | . . . . Hackware . | . . . . Protection . | . . . . Artifact . | . . . . Weapon 5 | 1 1 . 3 Energy Gun 2 | . 1 . 1 Energy Cannon . | . . . . Ballistic Gun 3 | 1 . . 2 Ballistic Cannon . | . . . . Launcher . | . . . . Special Weapon . | . . . . Impact Weapon . | . . . . Slashing Weapon . | . . . . Piercing Weapon . | . . . . Special Melee Weapon . | . . . . Unidentified Prototypes . | . . . . Parts Lost 12 | . . . 12 Power 2 | . . . 2 Propulsion 6 | . . . 6 Utility . | . . . . Weapon 4 | . . . 4 Highest Loss Streak 11 | . . . 11 Average Slot Usage (%) 89 | . 97 100 82 Engine 8 | . 14 14 3 Core 2 | . . . 3 Leg 31 | . 28 28 34 Storage 23 | . 25 28 22 Energy Gun 7 | . 14 14 2 Ballistic Gun 14 | . 14 14 14 Naked Turns . | . . . . Heaviest Build 22 | 11 20 20 22 Greatest Support 60 | 20 20 20 60 Greatest Overweight (x) 3 | 1 . . 3 Average Overweight (x) . | . . . . Largest Inventory Capacity 10 | 6 10 10 10 Average Capacity 9 | 5 9 10 10 Most Carried 8 | 4 6 5 8 Average Carried 5 | 3 4 5 6 Final Capacity 10 | 6 10 10 10 Final Carried 5 | 4 5 5 . Class Distribution -------------------- 100% | Mutant Dominant Class ---------------- Mutant | -10/Materials Mutant | -10/Mines Mutant | -9/Materials Resources | -11 -10 -10 -9 ----------- Run | Scr Mat Min Mat Matter Collected 498 | 209 112 14 163 Remotely . | . . . . Salvage Created 354 | . 112 . 242 Parts 24 | . 9 . 15 Haulers Intercepted . | . . . . Recyclers Shooed 1 | . 1 . . Parts Field Recycled . | . . . . Retrieved Matter . | . . . . Parts Self-Destructed . | . . . . Prevented . | . . . . Kills | -11 -10 -10 -9 ------- Run | Scr Mat Min Mat Combat Hostiles Destroyed 8 | . 3 . 5 Guns 8 | . 3 . 5 Classes Destroyed 3 | . 1 . 2 Grunt 4 | . 3 . 1 Brawler 1 | . . . 1 Sentry 3 | . . . 3 Best Kill Streak 2 | . 2 . 2 Combat Bots Only 2 | . 2 . 2 Max Kills in Single Turn 1 | . 1 . 1 Gunslinging . | . . . . Exploded . | . . . . Melee . | . . . . Uniques/NPCs Destroyed . | . . . . Combat | -11 -10 -10 -9 -------- Run | Scr Mat Min Mat Damage Taken 1859 | . 178 . 1681 Core 421 | . 16 . 405 Absorbed by Shields . | . . . . Core Remaining (%) 96 | 100 . 93 . Volleys Fired 66 | . 16 . 50 Largest 2 | . 1 . 2 Hottest 46 | . 20 . 46 Shots Fired 73 | . 16 . 57 Gun 73 | . 16 . 57 Cannon . | . . . . Launcher . | . . . . Special . | . . . . Kinetic 70 | . 16 . 54 Thermal 3 | . . . 3 Explosive . | . . . . Electromagnetic . | . . . . Robot Hit Streak 21 | . 8 . 21 Robot Miss Streak 2 | . 1 . 2 Penetration Max . | . . . . Secondary Targets 1 | . . . 1 Max Gunslinging Chain 1 | . . . 1 Shots Hit Robots 64 | . 13 . 51 Core Hits 19 | . 6 . 13 Critical Hits . | . . . . Critical Kills . | . . . . Critical Parts Destroyed . | . . . . Melee Attacks . | . . . . Impact . | . . . . Slashing . | . . . . Piercing . | . . . . Sneak Attacks . | . . . . Combat Hostiles . | . . . . Follow-up Attacks . | . . . . Damage Inflicted 942 | . 191 . 751 Guns 927 | . 176 . 751 Cannons . | . . . . Explosions . | . . . . Melee . | . . . . Ramming 15 | . 15 . . Kinetic 895 | . 176 . 719 Thermal 32 | . . . 32 Explosive . | . . . . Electromagnetic . | . . . . Impact . | . . . . Slashing . | . . . . Piercing . | . . . . Highest Corruption 4 | . . . 4 Average Corruption 3 | . . . 3 Corruption Purged . | . . . . Effects 3 | . . . 3 Message Errors 1 | . . . 1 Matter Fused 1 | . . . 1 Weapon Failures 1 | . . . 1 Overload Shots . | . . . . Overflow Damage . | . . . . Projectiles . | . . . . Explosions . | . . . . Melee . | . . . . Knockbacks . | . . . . Impact . | . . . . Kinetic . | . . . . Secondary . | . . . . Self-Inflicted Damage 7 | . 7 . . Shots . | . . . . Rammed 1 | . 1 . . Targets Rammed 1 | . 1 . . Kicked . | . . . . Crushed . | . . . . Highest Temperature 5 | . . . 5 Average Temperature 4 | . . . 4 Received Heat Transfer 831 | . 102 . 729 Siege Activations . | . . . . Robots Corrupted . | . . . . Combat Hostiles . | . . . . Parts Fried . | . . . . Impact Corruptions . | . . . . Robots Melted . | . . . . Combat Hostiles . | . . . . Parts Melted . | . . . . Heat Transferred 75 | . . . 75 Parts Sabotaged . | . . . . Parts Stolen . | . . . . Parts Stripped . | . . . . Power Chain Reactions . | . . . . Missiles Intercepted . | . . . . Alert | -11 -10 -10 -9 ------- Run | Scr Mat Min Mat Peak Influence 192 | . 85 33 192 Initial 33 | . . 33 12 Average 67 | . 45 33 99 Maximum Alert Level . | . . . . Low Security (%) 100 | 100 100 100 100 Level 1 . | . . . . Level 2 . | . . . . Level 3 . | . . . . Level 4 . | . . . . Level 5 . | . . . . High Security . | . . . . Max Security . | . . . . Squads Dispatched 4 | . 1 . 3 Investigation 1 | . 1 . . Extermination . | . . . . Reinforcement 3 | . . . 3 Assault . | . . . . Garrison . | . . . . Intercept . | . . . . Construction Impeded . | . . . . Haulers Reinforced . | . . . . Stealth | -11 -10 -10 -9 --------- Run | Scr Mat Min Mat Distress Signals 1 | . . . 1 Communications Jammed . | . . . . Distress Signals . | . . . . Times Spotted 26 | . 7 1 18 Peak Tracking Total 8 | . 5 1 8 Tactical Retreats 2 | . 1 . 1 Traps | -11 -10 -10 -9 ------- Run | Scr Mat Min Mat Traps Triggered 2 | . 1 . 1 Indirectly . | . . . . Trap Hack Attempts . | . . . . Triggered . | . . . . Disarmed . | . . . . Reprogrammed . | . . . . Reused . | . . . . Traps Extracted . | . . . . Installed . | . . . . Triggered . | . . . . Machines | -11 -10 -10 -9 ---------- Run | Scr Mat Min Mat Machines Disabled . | . . . . Max in Single Turn . | . . . . Machines Sabotaged . | . . . . Garrisons Compromised . | . . . . Overloaded Fab Kills . | . . . . Fab Network Shutdowns . | . . . . Hacking | -11 -10 -10 -9 --------- Run | Scr Mat Min Mat Machines Accessed . | . . . . Terminals . | . . . . Fabricators . | . . . . Repair Stations . | . . . . Recycling Units . | . . . . Scanalyzers . | . . . . Garrison Access . | . . . . Total Hacks . | . . . . Successful . | . . . . Failed . | . . . . Catastrophic . | . . . . Database Lockouts . | . . . . Manual . | . . . . Terminals . | . . . . Fabricators . | . . . . Repair Stations . | . . . . Recycling Units . | . . . . Scanalyzers . | . . . . Garrison Access . | . . . . Terminal Hacks . | . . . . Fabricator Hacks . | . . . . Repair Station Hacks . | . . . . Recycling Unit Hacks . | . . . . Scanalyzer . | . . . . Garrison Access Hacks . | . . . . Unauthorized Hacks . | . . . . Terminals . | . . . . Fabricators . | . . . . Repair Stations . | . . . . Recycling Units . | . . . . Scanalyzers . | . . . . Garrison Access . | . . . . Data Cores Recovered . | . . . . Used . | . . . . Hacking Detections . | . . . . Full Trace Events . | . . . . Feedback Events . | . . . . Feedback Blocked . | . . . . Robot Schematics Acquired . | . . . . Robots Built . | . . . . Matter . | . . . . Time . | . . . . Total Robot Build Rating . | . . . . Part Schematics Acquired . | . . . . Parts Built . | . . . . Matter . | . . . . Time . | . . . . Total Part Build Rating . | . . . . Parts Repaired . | . . . . Time . | . . . . Parts Recycled . | . . . . Recycled Matter . | . . . . Retrieved Matter . | . . . . Retrieved Components . | . . . . Parts Scanalyzed . | . . . . Part Schematics Acquired . | . . . . Parts Damaged . | . . . . Bothacking | -11 -10 -10 -9 ------------ Run | Scr Mat Min Mat Used RIF Installer . | . . . . Robots Hacked . | . . . . Non-combat . | . . . . Combat . | . . . . Robot Hacks Applied . | . . . . Relay Couplers Released . | . . . . Robots Rewired . | . . . . Allies Hacked . | . . . . Hacks Repelled . | . . . . Allies | -11 -10 -10 -9 -------- Run | Scr Mat Min Mat Total Allies . | . . . . Largest Group . | . . . . Highest-Rated Group . | . . . . Highest-Rated Ally . | . . . . Total Orders . | . . . . Ally Attacks . | . . . . Total Damage . | . . . . Kills . | . . . . Allies Corrupted . | . . . . Allies Melted . | . . . . Intel | -11 -10 -10 -9 ------- Run | Scr Mat Min Mat Robot Analysis Total . | . . . . Derelict Logs Recovered . | . . . . Drone Launches . | . . . . Drone Recoveries . | . . . . Exploration | -11 -10 -10 -9 ------------- Run | Scr Mat Min Mat Turns Passed 941 | 61 261 142 477 Spaces Moved 579 | 46 166 119 248 Core 28 | 10 . . 18 Treads . | . . . . Legs 527 | 36 166 119 206 Wheels 24 | . . . 24 Hover . | . . . . Flight . | . . . . Fastest Speed 50 | 50 120 120 80 Average Speed 119 | 105 120 120 122 Slowest Speed 200 | 120 120 120 200 Overloaded Moves . | . . . . Propulsion Burnouts . | . . . . Robots Hopped . | . . . . Cave-ins Triggered . | . . . . Exploration Rate (%) 26 | 4 32 40 30 Regions Visited 3 Branch Regions 1 Pre-discovered Areas . | . . . . Known Exits Taken . | . . . . Unknown Exits Taken 3 | 1 1 1 . Scrap Searched 1 | . . 1 . Spaces Dug . | . . . . Terrain Destroyed . | . . . . Melee . | . . . . Projectile . | . . . . AOE . | . . . . Terrain Rammed . | . . . . Walls Destroyed . | . . . . Machines Disabled . | . . . . Actions | -11 -10 -10 -9 --------- Run | Scr Mat Min Mat Total 747 | 57 211 118 361 Wait 61 | . 20 . 41 Move 576 | 45 165 118 248 Hop . | . . . . Pick Up 17 | 7 4 . 6 Fast Attach 2 | 2 . . . Attach 16 | 3 2 . 11 Detach . | . . . . Swap 7 | . 2 . 5 Drop 1 | . 1 . . Fire 66 | . 16 . 50 Melee . | . . . . Ram . | . . . . Kick 1 | . 1 . . Crush . | . . . . Escape Stasis . | . . . . Rewire . | . . . . Trap . | . . . . Miscellaneous . | . . . . Route ------- -11/Scrapyard -10/Materials -10/Mines -9/Materials (discovered 1 exit: [*Min]) History --------- Turn | Location | Event 11 | -11/Scrapyard | Discovered new exit (range 15) 62 | -11/Scrapyard | Entered Materials 234 | -10/Materials | Discovered new exit (range 14) 314 | -10/Materials | Build established: Mutant 323 | -10/Materials | Entered Mines 408 | -10/Mines | Assembled infested the area 427 | -10/Mines | Met a Derelict bent on vengeance 451 | -10/Mines | Discovered new exit (range 15) 465 | -10/Mines | Entered Materials 465 | -9/Materials | Evolved 2 slots: Propulsion x2 868 | -9/Materials | Core integrity fell below 50% 917 | -9/Materials | Core integrity fell below 20% 927 | -9/Materials | Lost 11 parts (1p6n4w) 940 | -9/Materials | Discovered new exit (range 12) 942 | -9/Materials | Destroyed by G-34 Mercenary with Small Laser Last Messages --------------- 00864_ K-01 Serf collects debris. 00869_ System corrupted: Sml. Laser failed to cycle. 00869_ Sml. Laser destroyed. 00870_ K-01 Serf collects debris. 00873_ Acquired 32 matter. 00874_ K-01 Serf collects debris. 00879_ System corrupted: Matter fused (-8). 00882_ K-01 Serf collects debris. 00890_ Wheel destroyed. 00892_ G-47 Trooper destroyed. 00895_ K-01 Serf collects debris. 00896_ Wheel destroyed. 00898_ K-01 Serf cleans the Nuclear Reactor. 00898_ K-01 Serf destroyed. 00923_ O-16 Technician: "IFF HANDSHAKE FAILED. SECURING TERMINAL." 00927_ ALERT: Hostiles spotted, dispatching reinforcements to Terminal M009. 00934_ T-07 Excavator is excavating. 00940_ EXIT=FOUND 00940_ U-05 Engineer lays Concrete. Map ----- +----------------------------------------------------+ | ???????????????????????????# ??????# ####"#### | | ???????????????????????????# ????## ## ! = | | ????????????????????????? # #### ! # | | ???????????????????????? # | | ???????????????????????? # | | ???????????????????????? # | | ?????????????????????????? ########## # """ | | ????????????????????????????????????### # """ | | ??????????????????????????????????????# # """ | | ??????????????????????????????????????# # | | ??????????????????????? ????????????# ######## | | ?????????????????????## #???????????# #??????? | | ?????????????????????# ????######## #??????? | | ?????????????????????# ????# # #??????? | | ?????????????????????# ???## %""" # #??????? | | ?????????????????????# < ???#T =""" # #??????? | | ?????????????????????# ???##=%""" # #??????? | | ?????????????????????# ????# /% +??????? | | ?????????????????????? ????# # # ?????? | | ??????????????????????# #????######## # "????? | | ??????????????????????# #??????????## #?""???? | | ??????????????????????# #??????????+ #?###??? | | ??????????????????????# #??????????## #??????? | | ?????????????????????## ##??????????# #??????? | | ???????????# ##### ##+######### #####! | | ???????????# o @ g g | | ???????????? T ^ Y | | ???????????# ^ k Ya go | | ??????????? r ##### #######/##### ###### | | ???????????###???????###t###???? ??# #??????#/ | | ??????????????????????#u ????? T #?# #???????? | | ??????????????????????###????#!! #?? #???????? | | ?????????????????????????????#!! #?? #???????? | | ????????????????????????????# !! #?? #???????? | | ????????????????????????????##########?? #???????? | | ???????????????????????????????????????? #???????? | | ???????????????????????????????????????? #???????? | | ???????????????????????????????????????? ????????? | | ?????????????????????????????????????????????????? | | ?????????????????????????????????????????????????? | | ?????????????????????????????????????????????????? | | ?????????????????????????????????????????????????? | | ?????????????????????????????????????????????????? | | ?????????????????????????????????????????????????? | | ?????????????????????????????????????????????????? | | ?????????????????????????????????????????????????? | | ?????????????????????????????????????????????????? | | ?????????????????????????????????????????????????? | | ?????????????????????????????????????????????????? | | ?????????????????????????????????????????????????? | +----------------------------------------------------+ Best States ------------- Heat Dissipation 28 Energy Generation 14 Energy Capacity 250 Matter Stores 300 Matter Capacity 300 Sight Range 16 Terrain Scan Density 10 Evasion (%) 50 Item Schematics ----------------- None Robot Schematics ------------------ None Fabricated ------------ Nothing Alien Tech Used ----------------- None Achievements -------------- I Survived The Infestation Challenges ------------ None Game ------ Seed DispersionWeldingMachine Manual? 0 Play Time 00:12:03 Cumulative 4.1 hours Start 2020.09.24 @ 17:03:35 End 2020.09.24 @ 17:12:19 Sessions 1 Manual Loads 0 Difficulty Rogue Special Mode None Game No. 26 Rogue 26 Adventurer 0 Explorer 0 Win Type - Total 0 Types 0/0/0/0/0/0/0/0/0 Lore% 0 Gallery% 10 Achievement% 3 Wizard Run 0 Options --------- ASCII 0 Keyboard 0 Movement Mouse Keybinds 0 Fullscreen 1 Font 18/SmallcapsGlow Map View 76x50 Tactical HUD 1 Map Filters NONE Filters NONE Steam 1 RUN: e14fdca6-8835-4250-915e-8476bca5cee6